bitfinex/quotes_SOLUSD_20240726
["timestamp","ask_amount","ask_price","bid_price","bid_amount"]
[1722002563732,1.36411446,183.35,183.3,5.4555]
[1722002564029,1.36393678,183.35,183.3,5.4555]
[1722002564336,1.36393678,183.35,183.28,5.4561]
[1722002564507,1.36393678,183.35,183.29,5.4557]
[1722002564823,1.36393678,183.35,183.29,5.4558]
[1722002565205,1.36394048,183.34,183.28,5.456]
[1722002565428,1.36403113,183.37,183.28,5.456]
[1722002565638,16.41,183.36,183.26,28.98]
[1722002565936,1.36407156,183.35,183.28,5.456]
[1722002566119,1.36407156,183.35,183.27,5.4563]
[1722002566427,1.36407156,183.35,183.26,28.98]
[1722002566939,1.36407156,183.35,183.26,34.4366]
[1722002567832,1.36407156,183.35,183.27,5.4563]
[1722002568016,1.36407156,183.35,183.28,5.4559]
[1722002568336,20.0,183.37,183.3,5.4555]
[1722002568337,17.7740483,183.37,183.3,5.4555]
[1722002569019,17.7740483,183.37,183.29,5.4557]
[1722002569221,16.41,183.4,183.29,5.4557]
[1722002569416,1.36390803,183.39,183.29,5.4557]
[1722002569626,16.41,183.38,183.3,5.4554]
[1722002569822,1.36390012,183.37,183.3,5.4554]
[1722002570029,1.36390012,183.37,183.29,5.4557]
[1722002570249,1.36390012,183.37,183.3,5.4553]
[1722002570732,1.36390012,183.37,183.31,5.4552]
[1722002570906,36.41,183.39,183.3,5.4552]
[1722002570907,1.36380914,183.38,183.3,5.4552]
[1722002571308,1.36380914,183.38,183.29,5.4557]
[1722002572403,1.36380914,183.38,183.29,31.2057]
[1722002572712,16.41,183.37,183.29,25.75]
[1722002573736,16.41,183.38,183.29,25.75]
[1722002573907,1.36401727,183.37,183.29,25.75]
[1722002574727,34.17401727,183.37,183.29,25.75]
[1722002574908,16.41,183.36,183.29,25.75]
[1722002575109,1.36401812,183.35,183.26,5.4564]
[1722002575341,16.41,183.34,183.23,31.2075]
[1722002575514,1.36439834,183.33,183.23,31.2075]
[1722002575831,17.77439517,183.32,183.23,31.2075]
[1722002576032,17.77439517,183.32,183.24,5.4572]
[1722002576530,17.77439517,183.32,183.23,31.2075]
[1722002576922,16.41,183.31,183.23,31.2073]
[1722002577236,16.41,183.31,183.23,25.75]
[1722002577447,16.41,183.31,183.24,5.4573]
[1722002577612,1.36437432,183.3,183.24,5.4573]
[1722002577816,1.36438737,183.29,183.23,31.2075]
[1722002578719,1.36438737,183.29,183.24,5.4573]
[1722002578941,16.41,183.34,183.25,5.457]
[1722002579115,16.41,183.32,183.25,5.457]
[1722002579625,16.41,183.32,183.24,5.4572]
[1722002580132,16.41,183.34,183.24,5.4572]
[1722002580336,16.41,183.32,183.25,5.4569]
[1722002580526,21.36436956,183.33,183.23,25.75]
[1722002580527,36.41,183.33,183.23,25.75]
[1722002580705,1.36432337,183.32,183.25,5.4569]
[1722002581121,36.41,183.33,183.26,25.75]
[1722002581122,21.36429334,183.33,183.26,25.75]
[1722002581324,21.36417932,183.35,183.27,5.4561]
[1722002581554,1.3641143,183.39,183.29,25.75]
[1722002581757,16.41,183.38,183.29,25.75]
[1722002582039,16.41,183.36,183.24,25.75]
[1722002582251,1.36419746,183.35,183.24,25.75]
[1722002582450,1.36419746,183.35,183.24,31.2072]
[1722002582942,16.41,183.34,183.24,31.2072]
[1722002583147,1.36429723,183.33,183.24,31.2072]
[1722002583351,1.36429611,183.32,183.24,31.2072]
[1722002583767,1.36429611,183.32,183.24,25.75]
[1722002584275,1.36429611,183.32,183.26,5.4566]
[1722002584442,1.36429611,183.32,183.25,5.4569]
[1722002584845,1.36429611,183.32,183.24,25.75]
[1722002585058,1.36429611,183.32,183.22,5.4579]
[1722002585291,1.36429611,183.32,183.21,31.2081]
[1722002585481,16.41,183.31,183.21,31.2081]
[1722002585666,1.36456633,183.3,183.22,5.4579]
[1722002585867,1.36451614,183.29,183.22,5.4579]
[1722002586168,1.36451614,183.29,183.22,5.4578]
[1722002586374,1.3644959,183.3,183.24,5.4573]
[1722002586680,1.36438508,183.29,183.21,31.2079]
[1722002587275,1.36438508,183.29,183.22,5.4578]
[1722002587466,1.36436396,183.32,183.24,25.75]
[1722002587670,58.49392783,183.39,183.24,25.75]
[1722002587671,31.20601176,183.38,183.24,25.75]
[1722002587892,9.84144853,183.37,183.28,5.456]
[1722002588066,1.3640941,183.36,183.3,25.75]
[1722002588265,1.3640941,183.36,183.3,31.2054]
[1722002588473,1.3639152,183.37,183.3,25.75]
[1722002588672,7.04784303,183.39,183.3,25.75]
[1722002589089,5.68392783,183.39,183.33,25.75]
[1722002589260,1.36374702,183.45,183.33,31.2046]
[1722002589466,1.36374702,183.45,183.33,25.75]
[1722002589467,16.41,183.44,183.33,25.75]
[1722002589666,11.20251936,183.43,183.35,5.4539]
[1722002589866,17.77347877,183.42,183.33,25.75]
[1722002590058,9.83904115,183.41,183.33,25.75]
[1722002590259,1.36365276,183.4,183.34,5.4542]
[1722002590464,16.41,183.44,183.34,5.4542]
[1722002590663,27.61257636,183.43,183.34,5.4542]
[1722002590858,1.36353772,183.42,183.34,5.4542]
[1722002591090,1.36353772,183.42,183.35,5.454]
[1722002591091,11.20230163,183.42,183.35,5.454]
[1722002591297,1.36353772,183.42,183.35,5.454]
[1722002591477,26.2533,183.47,183.36,25.75]
[1722002591478,9.8385014,183.46,183.36,25.75]
[1722002591677,1.36319504,183.45,183.36,25.75]
[1722002591907,9.8385014,183.45,183.39,25.75]
[1722002592084,9.8385014,183.45,183.31,16.4684]
[1722002592085,1.36318493,183.44,183.31,42.2184]
[1722002592271,1.36318493,183.44,183.31,47.6734]
[1722002592465,1.36318493,183.44,183.31,42.2184]
[1722002592770,16.41,183.43,183.33,5.4545]
[1722002592972,9.8385014,183.42,183.33,5.4545]
[1722002593284,1.36358117,183.41,183.31,42.2184]
[1722002593488,1.36354703,183.4,183.31,42.2184]
[1722002593789,1.36373897,183.39,183.31,47.6733]
[1722002594007,1.36373897,183.39,183.32,5.4549]
[1722002594387,9.83977057,183.4,183.32,5.4549]
[1722002594688,1.36364515,183.39,183.31,42.2184]
[1722002594994,1.36364515,183.39,183.25,6.6356]
[1722002594995,1.36364515,183.39,183.33,5.4546]
[1722002595372,1.36364515,183.39,183.31,5.4549]
[1722002595572,16.41,183.37,183.18,6.3571]
[1722002595768,6.3642,183.38,183.17,15.0827]
[1722002595769,36.41,183.3,183.17,40.8327]
[1722002595999,1.36458403,183.29,183.18,5.4589]
[1722002596195,1.36458403,183.29,183.19,5.4585]
[1722002596580,1.36458403,183.29,183.17,15.0827]
[1722002597309,1.36458403,183.29,183.2,5.4584]
[1722002597478,1.36458403,183.29,183.18,5.4588]
[1722002597799,16.41,183.28,183.19,5.4587]
[1722002597982,1.36473591,183.27,183.19,5.4587]
[1722002598189,1.36473754,183.26,183.19,5.4587]
[1722002598695,1.36473754,183.26,183.2,5.4583]
[1722002598899,1.36456482,183.3,183.23,5.4575]
[1722002599098,1.36449348,183.29,183.23,5.4575]
[1722002599484,1.36449348,183.29,183.21,5.458]
[1722002599985,5.69761784,183.31,183.18,1.0916193]
[1722002600182,1.36452412,183.34,183.19,1.09137625]
[1722002600383,1.3641806,183.37,183.21,29.01]
[1722002600602,1.3641806,183.37,183.3,5.4554]
[1722002600808,1.3641806,183.37,183.28,5.4558]
[1722002601101,1.3641806,183.37,183.21,30.10118291]
[1722002601102,1.36391079,183.37,183.3,5.4552]
[1722002601680,1.36391079,183.37,183.29,5.4558]
[1722002602092,17.77391079,183.37,183.31,5.4552]
[1722002602303,17.77387141,183.41,183.31,5.4552]
[1722002602503,16.41,183.39,183.32,5.4548]
[1722002602712,17.77379207,183.39,183.32,5.4548]
[1722002602897,17.77379207,183.39,183.33,5.4545]
[1722002603520,1.36379207,183.39,183.31,5.4549]
[1722002603691,16.41,183.4,183.31,5.4549]
[1722002604027,21.36377398,183.39,183.32,5.4548]
[1722002604214,21.36377398,183.39,183.25,29.01]
[1722002604381,37.77377398,183.39,183.25,29.01]
[1722002604887,36.41,183.39,183.3,5.4552]
[1722002605089,36.41,183.39,183.25,29.01]
[1722002605287,36.41,183.39,183.27,5.4562]
[1722002605607,36.41,183.39,183.25,5.4569]
[1722002605608,16.41,183.37,183.25,5.4569]
[1722002605816,16.41,183.35,183.17,44.0927]
[1722002606110,16.41,183.33,183.25,5.4569]
[1722002606407,16.41,183.33,183.17,44.0927]
[1722002606408,1.36430381,183.32,183.26,5.4566]
[1722002606704,16.41,183.35,183.17,44.0927]
[1722002606911,1.36426135,183.31,183.23,5.4573]
[1722002607598,1.36426135,183.31,183.24,5.4573]
[1722002607817,17.77426135,183.31,183.17,15.0827]
[1722002608007,16.41,183.29,183.17,15.0827]
[1722002608210,40.0,183.36,183.24,5.4572]
[1722002608512,1.36466709,183.35,183.25,5.4567]
[1722002608687,11.20618502,183.35,183.24,5.4572]
[1722002608888,20.0,183.34,183.23,5.4575]
[1722002609089,1.36435929,183.33,183.24,5.4572]
[1722002609289,1.36434502,183.32,183.17,44.0927]
[1722002609912,1.36434502,183.32,183.25,5.4569]
[1722002610089,1.36431376,183.32,183.25,5.4567]
[1722002610296,1.36431376,183.32,183.26,5.4566]
[1722002610793,1.36425369,183.37,183.31,5.4551]
[1722002611001,1.36425369,183.37,183.25,29.01]
[1722002611002,1.36387553,183.39,183.33,5.4546]
[1722002611418,1.36387553,183.39,183.26,1.09110042]
[1722002611419,1.36387553,183.39,183.32,5.4548]
[1722002611599,1.36387553,183.39,183.33,5.4546]
[1722002611807,17.77371936,183.41,183.34,5.4543]
[1722002612015,1.36371936,183.41,183.34,5.4543]
[1722002612211,11.20213912,183.41,183.35,5.4539]
[1722002612390,11.20213912,183.41,183.29,29.01]
[1722002612391,17.77371936,183.41,183.29,29.01]
[1722002612590,17.77371936,183.41,183.33,5.4546]
[1722002612992,17.77371936,183.41,183.34,5.4543]
[1722002613198,17.77371936,183.41,183.32,5.4546]
[1722002613399,17.77371936,183.41,183.33,5.4546]
[1722002613622,22.6353,183.44,183.36,5.4535]
[1722002613822,31.201334,183.43,183.36,5.4535]
[1722002614011,5.69655032,183.45,183.39,5.4526]
[1722002614329,1.36306451,183.44,183.39,5.4526]
[1722002614620,1.36306451,183.44,183.37,5.4532]
[1722002615117,1.36306451,183.44,183.36,5.4537]
[1722002615418,1.36306451,183.44,183.33,29.01]
[1722002615925,16.41,183.43,183.33,5.4543]
[1722002616122,1.36367987,183.42,183.25,6.4191]
[1722002616322,16.41,183.41,183.25,6.4191]
[1722002616626,16.41,183.39,183.24,44.6679]
[1722002616924,37.77399018,183.38,183.28,5.4559]
[1722002617216,20.0,183.37,183.26,5.4564]
[1722002617419,17.77411234,183.36,183.26,5.4564]
[1722002617621,20.0,183.38,183.29,5.4557]
[1722002617622,37.77409005,183.35,183.29,5.4557]
[1722002617821,1.36398437,183.34,183.28,5.4558]
[1722002618211,1.36398437,183.34,183.24,44.6679]
[1722002618732,1.36398437,183.34,183.26,5.4567]
[1722002619070,1.36398437,183.34,183.24,21.1149]
[1722002619226,16.41,183.33,183.24,5.457]
[1722002619403,1.36430911,183.32,183.25,5.4569]
[1722002619600,20.0,183.34,183.27,5.4563]
[1722002619927,1.36408445,183.33,183.26,5.4564]
[1722002620213,1.36419032,183.35,183.24,29.01]
[1722002620419,1.36419032,183.35,183.25,5.4569]
[1722002620595,17.77419032,183.35,183.25,5.457]
[1722002620796,16.41,183.33,183.24,5.4572]
[1722002620996,1.36425715,183.32,183.2,29.01]
[1722002621220,1.36425342,183.31,183.24,5.457]
[1722002621526,17.77425342,183.31,183.22,5.4576]
[1722002621818,17.77425342,183.31,183.24,5.4572]
[1722002622021,17.77439153,183.33,183.25,5.4569]
[1722002622226,17.77439153,183.33,183.2,29.01]
[1722002622227,1.36424412,183.32,183.27,5.4561]
[1722002622412,1.36424412,183.32,183.26,5.4565]
[1722002622821,1.36424412,183.32,183.25,5.4569]
[1722002623126,1.36424412,183.32,183.2,29.01]
[1722002623439,16.41,183.3,183.21,5.458]
[1722002623725,37.77455188,183.29,183.22,5.4579]
[1722002624039,37.77455188,183.29,183.23,5.4576]
[1722002624327,37.77455188,183.29,183.22,5.4578]
[1722002624523,17.77452021,183.32,183.17,15.1422]
[1722002624830,36.41,183.31,183.17,15.1422]
[1722002625013,1.36452021,183.32,183.17,16.23362587]
[1722002625204,1.36452021,183.32,183.27,5.4564]
[1722002625712,1.3641077,183.36,183.27,5.4564]
[1722002625919,1.36410752,183.35,183.24,29.01]
[1722002626101,7.99557958,183.37,183.24,29.01]
[1722002626430,7.99557958,183.37,183.18,1.09135671]
[1722002626431,7.99557958,183.37,183.27,5.4563]
[1722002626731,7.99557958,183.37,183.23,29.01]
[1722002626905,16.41,183.36,183.23,29.01]
[1722002627107,6.6316,183.37,183.31,5.4551]
[1722002627412,1.36382531,183.36,183.23,29.01]
[1722002627725,1.36383992,183.35,183.23,29.01]
[1722002628023,1.36383992,183.35,183.29,5.4558]
[1722002628225,1.36383992,183.35,183.27,31.2162]
[1722002628609,1.36383992,183.35,183.27,25.76]
[1722002628811,6.6316,183.37,183.32,5.4549]
[1722002629137,6.6316,183.37,183.29,5.4555]
[1722002629138,1.36379502,183.36,183.29,5.4555]
[1722002629335,6.6316,183.37,183.27,25.76]
[1722002629336,1.36387535,183.35,183.27,25.76]
[1722002630221,1.36387535,183.35,183.28,5.4558]
[1722002630434,1.36387535,183.35,183.23,28.98]
[1722002630732,1.36387535,183.35,183.23,5.4573]
[1722002630733,16.41,183.33,183.23,5.4573]
[1722002630943,1.36435466,183.32,183.23,5.4573]
[1722002631235,1.36435466,183.32,183.25,5.4569]
[1722002631419,1.36435466,183.32,183.24,5.4573]
[1722002631621,17.77435466,183.32,183.22,5.4576]
[1722002631821,17.77435466,183.32,183.19,28.98]
[1722002632032,1.36435093,183.31,183.24,5.4573]
[1722002633036,1.36435093,183.31,183.25,5.4568]
[1722002633214,17.77430845,183.32,183.26,5.4567]
[1722002633418,17.77430845,183.32,183.25,5.4569]
[1722002634119,1.36430845,183.32,183.25,5.4569]
[1722002634328,16.41,183.32,183.25,5.4569]
[1722002634532,1.36428747,183.31,183.26,5.4567]
[1722002634845,17.77426644,183.32,183.24,5.4572]
[1722002635141,17.77426644,183.32,183.25,5.4569]
[1722002635308,17.77426644,183.32,183.23,5.4575]
[1722002635508,17.77426644,183.32,183.19,28.98]
[1722002636218,16.41,183.3,183.19,28.98]
[1722002636417,17.77443839,183.3,183.23,5.4575]
[1722002636622,17.77442456,183.3,183.22,5.4578]
[1722002636814,1.36443702,183.29,183.2,5.4582]
[1722002637009,1.36443702,183.29,183.22,5.4578]
[1722002637211,16.41,183.3,183.22,5.4578]
[1722002637432,17.77452178,183.3,183.22,5.4578]
[1722002637611,16.41,183.3,183.22,5.4578]
[1722002637927,20.0,183.31,183.17,15.1422]
[1722002637928,21.36451272,183.31,183.17,15.1422]
[1722002638139,21.36451272,183.31,183.18,1.09150584]
[1722002638431,37.77451272,183.31,183.23,5.4573]
[1722002638621,37.77451272,183.31,183.21,5.4579]
[1722002638825,16.41,183.29,183.22,5.4578]
[1722002639022,1.36450305,183.29,183.22,5.4578]
[1722002639421,37.77450329,183.31,183.18,1.09160263]
[1722002639618,37.77450329,183.31,183.24,5.457]
[1722002640018,37.77450329,183.31,183.22,5.4578]
[1722002640221,37.77450329,183.31,183.24,5.4572]
[1722002640540,20.0,183.31,183.18,1.09157603]
[1722002640737,36.41,183.33,183.23,5.4573]
[1722002640939,37.77436252,183.32,183.23,5.4573]
[1722002641142,16.41,183.31,183.22,5.4579]
[1722002641437,16.41,183.31,183.2,5.4583]
[1722002641438,37.77442992,183.3,183.2,5.4583]
[1722002641642,16.41,183.28,183.2,5.4583]
[1722002641844,1.36468968,183.27,183.18,5.4588]
[1722002642052,22.7142,183.25,183.1,16.083]
[1722002642218,22.7142,183.25,183.11,1.09204401]
[1722002642219,16.41,183.23,183.11,1.09204401]
[1722002642551,6.3042,183.25,183.22,5.4576]
[1722002642841,6.3042,183.3,183.21,5.4581]
[1722002643015,1.3646335,183.29,183.2,5.4585]
[1722002643211,1.3646335,183.29,183.19,5.4587]
[1722002643415,17.7746335,183.29,183.21,5.4581]
[1722002643625,17.7746335,183.29,183.18,28.98]
[1722002644041,6.3042,183.3,183.26,5.4565]
[1722002644246,6.3042,183.3,183.18,28.98]
[1722002644446,1.36435299,183.29,183.18,28.98]
[1722002644755,1.36435299,183.29,183.24,5.4573]
[1722002644915,1.36435299,183.29,183.19,28.98]
[1722002645425,1.36435299,183.29,183.22,5.4578]
[1722002645751,1.36435299,183.29,183.23,5.4575]
[1722002646042,7.66866827,183.3,183.24,5.4572]
[1722002646340,6.3042,183.3,183.19,28.98]
[1722002646512,1.36428114,183.29,183.19,28.98]
[1722002646712,1.36443973,183.29,183.24,5.4573]
[1722002647155,1.36443973,183.29,183.23,5.4576]
[1722002647446,1.36443973,183.29,183.19,28.98]
[1722002647639,6.3042,183.3,183.25,5.457]
[1722002648023,6.3042,183.3,183.19,28.98]
[1722002648238,1.36441929,183.29,183.23,5.4575]
[1722002648625,1.36441929,183.29,183.19,28.98]
[1722002648831,16.41,183.28,183.2,5.4582]
[1722002649029,1.36465044,183.27,183.2,5.4582]
[1722002649236,1.36464948,183.26,183.15,28.98]
[1722002649551,1.36464948,183.26,183.2,5.4583]
[1722002649552,1.36479143,183.26,183.2,5.4583]
[1722002649931,1.36479143,183.26,183.2,5.4584]
[1722002650137,1.36479143,183.26,183.15,28.98]
[1722002650542,1.36479143,183.26,183.19,5.4588]
[1722002650846,1.36479143,183.26,183.19,5.4587]
[1722002651033,1.36479143,183.26,183.17,5.4591]
[1722002651349,17.77479143,183.26,183.17,5.4591]
[1722002651556,16.41,183.24,183.16,5.4596]
[1722002651847,1.36492454,183.23,183.17,5.4593]
[1722002652018,1.36480054,183.27,183.15,28.98]
[1722002652221,17.77469226,183.27,183.2,25.78]
[1722002652419,5.70166783,183.29,183.23,25.78]
[1722002652619,1.36440738,183.32,183.26,5.4566]
[1722002652853,1.36429193,183.29,183.23,25.78]
[1722002653023,17.77444822,183.29,183.23,25.78]
[1722002653226,17.77444822,183.29,183.15,26.87155857]
[1722002653227,17.77444822,183.29,183.2,31.2382]
[1722002653532,17.77444822,183.29,183.2,25.78]
[1722002653862,17.77444822,183.29,183.18,5.459]
[1722002654023,17.77444822,183.29,183.1,16.083]
[1722002654024,16.41,183.27,183.1,16.083]
[1722002654224,1.3649128,183.26,183.17,5.4593]
[1722002654450,16.41,183.25,183.14,25.78]
[1722002654630,16.41,183.23,183.14,25.78]
[1722002654940,17.77503502,183.23,183.14,25.78]
[1722002655429,17.77503502,183.23,183.14,31.2402]
[1722002655637,16.41,183.25,183.14,25.78]
[1722002655843,16.41,183.23,183.16,5.4596]
[1722002656147,16.41,183.23,183.17,5.4592]
[1722002656340,17.77493652,183.23,183.17,31.2392]
[1722002656653,16.41,183.23,183.17,25.78]
[1722002656850,17.77495861,183.25,183.17,25.78]
[1722002657154,16.41,183.23,183.17,25.78]
[1722002657536,37.77495337,183.23,183.17,25.78]
[1722002657737,17.77495337,183.23,183.17,25.78]
[1722002657931,1.36495337,183.23,183.14,25.78]
[1722002658132,17.77495337,183.23,183.14,31.2402]
[1722002659055,16.41,183.21,183.14,31.2402]
[1722002659863,16.41,183.21,183.15,5.4599]
[1722002660039,1.36511,183.24,183.16,5.4596]
[1722002660354,16.41,183.23,183.16,5.4596]
[1722002660551,16.41,183.23,183.17,31.2393]
[1722002660932,16.41,183.23,183.17,25.78]
[1722002661132,37.77492711,183.23,183.17,25.78]
[1722002661547,17.77492711,183.23,183.17,25.78]
[1722002662557,37.77492711,183.23,183.17,25.58]
[1722002662749,17.77492711,183.23,183.17,25.58]
[1722002663734,16.41,183.21,183.14,25.78]
[1722002663928,1.36514024,183.2,183.08,5.462]
[1722002664135,16.41,183.16,183.09,25.78]
[1722002664448,1.36553155,183.15,183.09,25.78]
[1722002664648,1.36553155,183.14,183.09,25.78]
[1722002665363,1.36553155,183.14,183.04,15.1186]
[1722002665364,17.77553155,183.14,183.04,5.463]
[1722002665542,16.41,183.12,183.05,31.2428]
[1722002665738,1.36581459,183.11,183.05,25.78]
[1722002666041,1.36581459,183.1,183.05,31.2429]
[1722002666859,1.36581459,183.1,183.05,25.78]
[1722002667455,1.36581459,183.1,183.02,25.78]
[1722002667657,17.77581459,183.1,183.04,5.4631]
[1722002667860,17.77581459,183.1,183.03,5.4635]
[1722002668435,17.77581459,183.1,183.04,5.4632]
[1722002668749,17.77589208,183.12,183.05,31.2429]
[1722002668937,69.22,183.11,183.05,31.2429]
[1722002669134,36.41,183.11,183.05,31.2429]
[1722002669338,1.36580101,183.1,183.05,31.2429]
[1722002669553,1.36580101,183.1,183.06,5.4625]
[1722002669953,1.36580101,183.1,183.05,25.78]
[1722002670570,57.77582619,183.11,183.01,5.4639]
[1722002670753,16.41,183.08,183.02,25.78]
[1722002670953,17.7760684,183.08,183.02,25.78]
[1722002671155,16.41,183.08,183.02,25.78]
[1722002671542,1.36609036,183.09,183.02,25.78]
[1722002671751,1.36609036,183.09,183.02,31.2438]
[1722002671956,20.0,183.11,183.04,5.463]
[1722002672143,1.36603235,183.12,182.97,25.78]
[1722002672144,1.36603235,183.12,183.05,31.2429]
[1722002672344,1.36603235,183.12,183.05,25.78]
[1722002672640,17.77603235,183.12,183.05,25.78]
[1722002672857,16.41,183.11,183.05,31.2428]
[1722002673066,2.00887081,183.16,183.08,25.78]
[1722002673261,20.0,183.13,182.97,26.87244681]
[1722002673471,1.36617113,183.12,183.04,25.78]
[1722002673643,17.77617113,183.12,183.04,25.78]
[1722002673837,16.41,183.1,183.04,25.78]
[1722002674043,17.77595356,183.1,182.98,25.78]
[1722002674551,16.41,183.07,182.99,5.4647]
[1722002674851,1.36628323,183.06,182.98,25.78]
[1722002675469,1.36628323,183.06,182.98,31.2449]
[1722002675651,1.36628323,183.06,182.98,25.78]
[1722002676673,1.36628323,183.06,182.99,5.4647]
[1722002676876,1.36628323,183.06,183.0,5.4644]
[1722002677070,22.6741,183.07,183.01,5.4641]
[1722002677573,6.2641,183.07,183.02,5.4638]
[1722002677776,6.2641,183.07,183.01,31.2441]
[1722002678155,16.41,183.06,183.01,25.78]
[1722002678357,1.36611782,183.11,183.04,25.78]
[1722002678763,11.83987191,183.12,183.04,25.78]
[1722002678764,5.70227191,183.12,183.08,5.462]
[1722002678977,1.36557265,183.11,183.0,5.4642]
[1722002679278,1.36615886,183.1,183.01,5.4641]
[1722002679463,1.36615886,183.1,183.02,5.4638]
[1722002680060,5.70227191,183.12,183.06,25.78]
[1722002680287,5.70227191,183.12,183.09,25.78]
[1722002680476,1.36545538,183.19,183.1,5.4614]
[1722002680653,23.91302614,183.17,183.1,5.4614]
[1722002681076,16.41,183.14,183.04,25.78]
[1722002681383,16.41,183.12,183.04,25.78]
[1722002681575,1.36583545,183.11,183.04,25.78]
[1722002681762,17.77591721,183.1,183.01,25.78]
[1722002682176,16.41,183.08,182.98,25.78]
[1722002682475,1.36623051,183.07,182.98,25.78]
[1722002682881,17.77621759,183.08,182.98,25.78]
[1722002683096,1.3660558,183.07,183.01,25.78]
[1722002683262,16.41,183.1,183.01,25.78]
[1722002683459,20.0,183.14,183.04,25.78]
[1722002683765,13.0937896,183.21,183.07,5.4623]
[1722002683766,26.1376,183.17,183.07,5.4623]
[1722002683966,16.41,183.13,182.93,15.8278]
[1722002684177,16.41,183.11,183.01,5.4639]
[1722002684358,1.36609217,183.1,183.01,5.4639]
[1722002684555,1.36609217,183.1,183.0,31.2444]
[1722002684755,1.36609217,183.1,183.01,5.4641]
[1722002684959,16.41,183.09,183.02,5.4638]
[1722002685159,16.41,183.09,183.0,25.78]
[1722002685386,16.41,183.09,183.04,5.4631]
[1722002685585,1.36585338,183.1,183.03,25.78]
[1722002685891,1.36579298,183.14,183.07,5.4623]
[1722002686088,1.36579298,183.14,183.03,25.78]
[1722002686610,16.41,183.08,183.0,5.4642]
[1722002686797,1.36619271,183.07,182.99,5.4647]
[1722002687288,1.36619271,183.07,183.0,5.4643]
[1722002688082,17.77619271,183.07,183.0,5.4643]
[1722002689182,16.41,183.06,182.98,5.4649]
[1722002689495,21.36615255,183.12,183.02,5.4638]
[1722002689658,40.0,183.1,183.01,5.464]
[1722002689862,21.36615287,183.09,183.01,5.464]
[1722002690061,21.36615287,183.09,182.98,25.78]
[1722002690275,1.36615287,183.09,183.03,5.4635]
[1722002690489,37.77615287,183.09,183.01,5.4641]
[1722002690660,36.41,183.08,182.99,5.4645]
[1722002690861,36.41,183.08,182.98,25.78]
[1722002690862,36.41,183.06,182.98,25.78]
[1722002691062,36.41,183.06,182.99,5.4646]
[1722002691269,16.41,183.06,183.0,5.4644]
[1722002691478,1.36618672,183.05,182.99,5.4647]
[1722002691771,1.36620805,183.04,183.0,5.4644]
[1722002692075,17.77618162,183.07,183.0,5.4644]
[1722002692473,37.77618162,183.07,183.0,5.4644]
[1722002693084,37.77618162,183.07,182.98,25.78]
[1722002693590,37.77618162,183.07,182.99,5.4645]
[1722002694082,37.77618162,183.07,182.93,15.8278]
[1722002694083,16.41,183.05,182.96,5.4656]
[1722002694293,1.36639784,183.04,182.97,5.4651]
[1722002694490,1.36639784,183.04,182.98,5.465]
[1722002694986,17.77633189,183.05,182.98,5.465]
[1722002695179,1.36633189,183.04,182.95,25.78]
[1722002695378,1.36633189,183.04,182.97,5.4652]
[1722002696779,16.41,183.02,182.95,25.78]
[1722002697067,1.36653179,183.01,182.95,25.78]
[1722002697397,36.41,183.0,182.93,5.4665]
[1722002697588,1.36663337,182.99,182.93,5.4665]
[1722002697786,1.36662861,182.98,182.93,5.4665]
[1722002697981,16.41,183.0,182.94,5.4662]
[1722002698186,1.36662741,182.99,182.94,5.4662]
[1722002698497,1.36665735,182.98,182.95,5.4659]
[1722002698687,1.36665735,182.98,182.92,25.78]
[1722002699196,16.41,182.97,182.82,6.0694]
[1722002699493,1.3670236,182.96,182.89,31.2477]
[1722002699669,1.36697965,182.95,182.89,31.2477]